lending/lending_fUSD_20250917
["ID","MTS","AMOUNT","RATE_DAILY","PERIOD"]
[385891395,1758107434098,-200.0,0.00024744,2]
[385891396,1758107434108,-500.0,0.00024744,2]
[385891397,1758107434117,-200.0,0.00024744,2]
[385891398,1758107434126,-500.0,0.00024744,2]
[385891399,1758107434135,-200.0,0.00024744,2]
[385891400,1758107434145,-500.0,0.00024744,2]
[385891401,1758107434154,-500.0,0.00024744,2]
[385891402,1758107434163,-200.0,0.00024744,2]
[385891403,1758107434172,-500.0,0.00024744,2]
[385891404,1758107434182,-200.0,0.00024744,2]
[385891405,1758107434191,-500.0,0.00024744,2]
[385891406,1758107434200,-343.48910792,0.00024744,2]
[385891407,1758107434210,-500.0,0.00024744,2]
[385891408,1758107434219,-151.0,0.00024744,2]
[385891409,1758107434228,-500.0,0.00024744,2]
[385891410,1758107434238,-500.0,0.00024744,2]
[385891411,1758107434247,-500.0,0.00024744,2]
[385891412,1758107434257,-162.07599393,0.00024744,2]
[385891413,1758107434267,-151.0,0.00024744,2]
[385891414,1758107434277,-500.0,0.00024744,2]
[385891415,1758107434286,-322.6107,0.00024744,2]
[385891416,1758107434298,-160.0,0.00024744,2]
[385891417,1758107434307,-500.0,0.00024744,2]
[385891418,1758107434316,-500.0,0.00024744,2]
[385891419,1758107434326,-500.0,0.00024744,2]
[385891420,1758107434336,-500.0,0.00024744,2]
[385891421,1758107434345,-500.0,0.00024744,2]
[385891422,1758107434355,-500.0,0.00024744,2]
[385891423,1758107434365,-500.0,0.00024744,2]
[385891424,1758107434375,-500.0,0.00024744,2]
[385891425,1758107434384,-500.0,0.00024744,2]
[385891426,1758107434394,-500.0,0.00024744,2]
[385891427,1758107434403,-500.0,0.00024744,2]
[385891428,1758107434412,-542.13588615,0.00024744,2]
[385891429,1758107434421,-500.0,0.00024744,2]
[385891430,1758107434430,-500.0,0.00024744,2]
[385891431,1758107434440,-500.0,0.00024744,2]
[385891432,1758107434449,-500.0,0.00024744,2]
[385891433,1758107434458,-500.0,0.00024744,2]
[385891434,1758107434466,-500.0,0.00024744,2]
[385891435,1758107434476,-151.0,0.00024744,2]
[385891436,1758107434485,-250.0,0.00024744,2]
[385891437,1758107434494,-250.0,0.00024744,2]
[385891438,1758107434503,-250.0,0.00024744,2]
[385891439,1758107434512,-257.91778498,0.00024744,2]
[385891440,1758107434521,-250.0,0.00024744,2]
[385891441,1758107434531,-250.0,0.00024744,2]
[385891442,1758107434540,-250.0,0.00024744,2]
[385891443,1758107434549,-250.0,0.00024744,2]
[385891444,1758107434559,-274.27076834,0.00024744,2]
[385891445,1758107434568,-238.302697,0.00024744,7]
[385891446,1758107434577,-238.302697,0.00024744,7]
[385891447,1758107434587,-238.302697,0.00024744,7]
[385891448,1758107434596,-238.302697,0.00024744,7]
[385891449,1758107434604,-151.0,0.00024744,7]
[385891450,1758107434614,-151.0,0.00024744,7]
[385891451,1758107434623,-151.0,0.00024744,7]
[385891452,1758107434632,-160.480939,0.00024744,7]
[385891453,1758107434641,-160.480939,0.00024744,7]
[385891454,1758107434650,-160.480939,0.00024744,7]
[385891455,1758107434659,-160.480939,0.00024744,7]
[385891456,1758107434669,-160.480939,0.00024744,7]
[385891457,1758107434679,-160.480939,0.00024744,7]
[385891458,1758107434692,-160.480939,0.00024744,7]
[385891459,1758107434701,-160.480947,0.00024744,7]
[385891460,1758107434710,-662.16341,0.00024744,7]
[385891461,1758107434719,-662.16341,0.00024744,7]
[385891462,1758107434730,-166.230065,0.00024744,7]
[385891463,1758107434740,-662.16341,0.00024744,7]
[385891464,1758107434748,-662.16341,0.00024744,7]
[385891465,1758107434758,-166.230065,0.00024744,7]
[385891466,1758107434767,-662.16341,0.00024744,7]
[385891467,1758107434775,-166.230065,0.00024744,7]
[385891468,1758107434783,-166.230065,0.00024744,7]
[385891469,1758107434791,-662.16341,0.00024744,7]
[385891470,1758107434799,-166.230065,0.00024744,7]
[385891471,1758107434808,-662.16341,0.00024744,7]
[385891472,1758107434817,-166.230065,0.00024744,7]
[385891473,1758107434826,-662.163402,0.00024744,7]
[385891474,1758107434835,-166.230065,0.00024744,7]
[385891475,1758107434845,-166.230069,0.00024744,7]
[385891476,1758107434854,-151.0,0.00024744,7]
[385891477,1758107434864,-151.0,0.00024744,7]
[385891478,1758107434872,-1464.94123188,0.00024748,2]
[385891479,1758107434882,-6024.12950765,0.00024759,2]
[385891480,1758107434891,-151.0,0.00024759,7]
[385891481,1758107434900,-270.598768,0.00024759,7]
[385891482,1758107434909,-151.0,0.00024759,7]
[385891483,1758107434919,-151.0,0.00024759,7]
[385891484,1758107434928,-151.0,0.00024759,7]
[385891485,1758107434937,-151.0,0.00024759,7]
[385891486,1758107434946,-209.751584,0.00024759,7]
[385891487,1758107434955,-209.751584,0.00024759,7]
[385891488,1758107434964,-209.751584,0.00024759,7]
[385891489,1758107434972,-209.751584,0.00024759,7]
[385891490,1758107434980,-151.0,0.00024759,7]
[385891491,1758107434988,-175.021681,0.00024759,7]
[385891492,1758107434996,-438.14666709,0.00024759,2]
[385891493,1758107435005,-221.134708,0.00024759,7]
[385891494,1758107435014,-151.0,0.00024759,7]
[385891495,1758107435023,-234.303678,0.00024759,7]
[385891496,1758107435032,-238.302697,0.00024759,7]
[385891497,1758107435043,-238.302697,0.00024759,7]
[385891498,1758107435053,-238.302697,0.00024759,7]
[385891499,1758107435063,-238.302701,0.00024759,7]
[385891500,1758107435072,-159.748675,0.00024759,7]
[385891501,1758107435081,-151.0,0.00024759,7]
[385891502,1758107435090,-166.891424,0.00024759,7]
[385891503,1758107435099,-161.49884535,0.0002477,2]
[385891504,1758107435108,-151.0,0.0002477,7]
[385891505,1758107435116,-151.0,0.0002477,7]
[385891506,1758107435124,-151.0,0.0002477,7]
[385891507,1758107435133,-151.0,0.0002477,7]
[385891508,1758107435142,-151.0,0.0002477,7]
[385891509,1758107435151,-151.0,0.0002477,7]
[385891510,1758107435160,-151.0,0.0002477,7]
[385891511,1758107435169,-151.0,0.0002477,7]
[385891512,1758107435178,-151.0,0.0002477,7]
[385891513,1758107435188,-198.197748,0.0002477,7]
[385891514,1758107435197,-209.751584,0.0002477,7]
[385891515,1758107435206,-209.751584,0.0002477,7]
[385891516,1758107435215,-209.751584,0.0002477,7]
[385891517,1758107435224,-209.751584,0.0002477,7]
[385891518,1758107435234,-151.0,0.0002477,7]
[385891519,1758107435243,-151.0,0.0002477,7]
[385891520,1758107435252,-1500.0,0.000248,9]
[385891521,1758107435261,-3023.52467195,0.000248,2]
[385891522,1758107435270,-151.0,0.00024814,7]
[385891523,1758107435280,-156.33907,0.00024814,7]
[385891524,1758107435289,-151.0,0.00024814,7]
[385891525,1758107435299,-151.0,0.00024814,7]
[385891526,1758107435309,-151.0,0.00024814,7]
[385891527,1758107435318,-151.0,0.00024814,7]
[385891528,1758107435327,-151.0,0.00024814,7]
[385891529,1758107435337,-160.246074,0.00024814,7]
[385891530,1758107435346,-151.0,0.00024814,7]
[385891531,1758107435356,-324.74304165,0.00024828,2]
[385891532,1758107435365,-308.81195223,0.00024828,2]
[385891533,1758107435374,-500.0,0.00024828,2]
[385891534,1758107435383,-317.39928345,0.00024828,2]
[385891535,1758107435392,-500.0,0.00024829,2]
[385891536,1758107435401,-150.0,0.00024829,2]
[385891537,1758107435412,-150.0,0.00024829,2]
[385891538,1758107435422,-150.0,0.00024829,2]
[385891539,1758107435431,-500.0,0.00024829,2]
[385891540,1758107435440,-150.0,0.00024829,2]
[385891541,1758107435449,-150.0,0.00024829,2]
[385891542,1758107435459,-150.0,0.00024829,2]
[385891543,1758107435468,-500.0,0.00024829,2]
[385891544,1758107435477,-0.33343488,0.00024829,2]
[385891545,1758107435492,-499.66656512,0.00024829,2]
[385891546,1758107435501,-500.0,0.00024829,2]
[385891547,1758107435510,-500.0,0.00024829,2]
[385891548,1758107435519,-200.94650692,0.00024829,2]
[385891549,1758107435528,-500.0,0.00024829,2]
[385891550,1758107435538,-150.0,0.00024829,2]
[385891551,1758107435548,-500.0,0.00024829,2]
[385891552,1758107435557,-500.0,0.00024829,2]
[385891553,1758107435567,-500.0,0.00024829,2]
[385891554,1758107435576,-150.0,0.00024829,2]
[385891555,1758107435585,-220.77494685,0.00024829,2]
[385891556,1758107435594,-500.0,0.00024829,2]
[385891557,1758107435603,-2118.0,0.00024829,2]
[385891558,1758107435613,-500.0,0.00024829,2]
[385891559,1758107435622,-150.0,0.00024829,2]
[385891560,1758107435631,-48.34493355,0.00024829,2]
[385891561,1758107435673,-101.65506645,0.00024829,2]
[385891562,1758107435685,-442.90747609,0.00024829,2]
[385891563,1758107435697,-57.09252391,0.00024829,2]
[385891564,1758107435706,-154.33237641,0.00024829,2]
[385891565,1758107435716,-500.0,0.00024829,2]
[385891566,1758107435725,-488.81913004,0.00024829,2]
[385891568,1758107437429,-151.0,0.00024658,7]
[385891569,1758107437439,-151.0,0.00024658,7]
[385891570,1758107437448,-11.18086996,0.00024829,2]
[385891571,1758107437457,-689.0,0.00024829,2]
[385891572,1758107437465,-150.0,0.00024829,2]
[385891573,1758107437473,-500.0,0.00024829,2]
[385891574,1758107437480,-500.0,0.00024829,2]
[385891575,1758107437489,-150.0,0.00024829,2]
[385891576,1758107437497,-500.0,0.00024829,2]
[385891577,1758107437506,-1854.93163478,0.00024838,2]
[385891578,1758107437689,-721.90836522,0.00024838,2]
[385891579,1758107437699,-2576.84,0.00024838,2]
[385891580,1758107437708,-151.66,0.00024838,2]
[385891581,1758107437718,-4945.139896,0.00024844,2]
[385891582,1758107437728,-179.8263818,0.00024844,2]
[385891583,1758107437737,-1302.9189457,0.00024844,2]
[385891584,1758107437746,-155.5049218,0.00024844,2]
[385891586,1758107437755,-3147.5203468,0.00024844,2]
[385891588,1758107437764,-151.0,0.00024844,7]
[385891590,1758107437774,-176.868809,0.00024844,7]
[385891592,1758107437783,-151.0,0.00024844,7]
[385891594,1758107437792,-168.7618055,0.00024844,2]
[385891596,1758107437802,-151.0,0.00024844,7]
[385891598,1758107437811,-151.0,0.00024844,7]
[385891600,1758107437820,-151.0,0.00024844,7]
[385891603,1758107437829,-151.0,0.00024844,7]
[385891605,1758107437838,-151.0,0.00024844,7]
[385891608,1758107437847,-209.751584,0.00024844,7]
[385891611,1758107437856,-209.751584,0.00024844,7]
[385891614,1758107437866,-209.751584,0.00024844,7]
[385891615,1758107437875,-209.751574,0.00024844,7]
[385891617,1758107437883,-151.0,0.00024844,7]
[385891619,1758107437892,-151.0,0.00024844,7]
[385891620,1758107437901,-151.0,0.00024845,7]
[385891621,1758107437910,-151.0,0.00024845,7]
[385891622,1758107437919,-11237.18517007,0.00024848,2]
[385891623,1758107437927,-1030490.43366697,0.00024848,3]
[385891624,1758107437935,-387792.671476,0.00024848,2]
[385891625,1758107437944,-158.641737,0.0002485,7]
[385891626,1758107437952,-151.0,0.0002485,7]
[385891627,1758107437960,-151.0,0.0002485,7]
[385891628,1758107437970,-13421.06702209,0.0002485,2]
[385891629,1758107437979,-516.07479255,0.00024858,3]
[385891630,1758107437989,-200.0,0.0002486,2]
[385891631,1758107437998,-200.0,0.0002486,2]
[385891632,1758107438009,-200.0,0.0002486,2]
[385891633,1758107438018,-151.0,0.0002486,7]
[385891634,1758107438027,-200.0,0.0002486,2]
[385891635,1758107438035,-1227.0,0.0002486,2]
[385891636,1758107438044,-6751.16933,0.0002486,2]
[385891637,1758107438053,-851.26773969,0.0002486,2]
[385891638,1758107438062,-151.0,0.0002486,2]
[385891639,1758107438071,-151.68650375,0.0002486,2]
[385891640,1758107438079,-200.0,0.0002486,2]
[385891641,1758107438088,-325.44623276,0.00024868,10]
[385891642,1758107438097,-300.0,0.00024869,10]
[385891643,1758107438106,-300.0,0.00024869,10]
[385891644,1758107438115,-1000.0,0.00024869,2]
[385891645,1758107438125,-300.0,0.00024869,10]
[385891646,1758107438134,-300.0,0.00024869,10]
[385891647,1758107438144,-151.0,0.00024869,7]
[385891648,1758107438153,-150.0,0.00024869,2]
[385891649,1758107438163,-1685.28,0.00024869,5]
[385891650,1758107438172,-1685.28,0.00024869,5]
[385891651,1758107438182,-1685.28,0.00024869,5]
[385891652,1758107438191,-1685.28,0.00024869,5]
[385891653,1758107438201,-1685.28,0.00024869,5]
[385891654,1758107438210,-1685.28,0.00024869,5]
[385891655,1758107438219,-500.0,0.00024869,2]
[385891656,1758107438228,-1685.28,0.00024869,5]
[385891657,1758107438238,-1685.28,0.00024869,5]
[385891658,1758107438247,-1685.28,0.00024869,5]
[385891659,1758107438260,-1685.28,0.00024869,5]
[385891660,1758107438269,-1685.28,0.00024869,5]
[385891661,1758107438278,-1685.28,0.00024869,5]
[385891662,1758107438287,-1685.28,0.00024869,5]
[385891663,1758107438296,-1685.28,0.00024869,5]
[385891664,1758107438305,-1685.28,0.00024869,5]
[385891665,1758107438315,-150.0,0.00024869,2]
[385891666,1758107438324,-1685.28,0.00024869,5]
[385891667,1758107438333,-1685.28,0.00024869,5]
[385891668,1758107438342,-1685.28,0.00024869,5]
[385891669,1758107438351,-1685.28,0.00024869,5]
[385891670,1758107438360,-1685.28,0.00024869,5]
[385891671,1758107438369,-1685.28,0.00024869,5]
[385891672,1758107438378,-1685.28,0.00024869,5]
[385891673,1758107438387,-1685.28,0.00024869,5]
[385891674,1758107438395,-1685.399655,0.00024869,5]
[385891675,1758107438405,-500.0,0.00024869,2]
[385891676,1758107438414,-150.0,0.00024869,2]
[385891677,1758107438423,-291.8390802,0.00024869,2]
[385891678,1758107438432,-500.0,0.00024869,2]
[385891679,1758107438441,-500.0,0.00024869,2]
[385891680,1758107438450,-500.0,0.00024869,2]
[385891681,1758107438459,-150.0,0.00024869,2]
[385891682,1758107438468,-1006.0,0.00024869,2]
[385891683,1758107438477,-809.77867907,0.0002487,2]
[385891684,1758107438486,-500.0,0.00024873,2]
[385891685,1758107438496,-504.80495171,0.00024873,2]
[385891686,1758107438505,-500.0,0.00024873,2]
[385891687,1758107438514,-500.0,0.00024873,2]
[385891688,1758107438523,-649.32611939,0.00024873,2]
[385891689,1758107438532,-500.0,0.00024873,2]
[385891690,1758107438541,-908446.66514113,0.0002488,2]
[385891691,1758107438550,-584.76664565,0.0002488,2]
[385891692,1758107438559,-59659.51,0.000249,7]
[385891693,1758107438567,-2000.0,0.000249,9]
[385891694,1758107438576,-554838.775301,0.000249,2]
[385891695,1758107438585,-15881.36195266,0.000249,2]
[385891696,1758107438594,-6751.16934,0.0002499,2]
[385891697,1758107438603,-170.0,0.00025,7]
[385891698,1758107438612,-150.0,0.00025016,2]
[385891699,1758107438621,-6024.12950762,0.00025041,2]
[385891700,1758107438630,-483.0,0.0002508,2]
[385891701,1758107438639,-500.0,0.00025103,2]
[385891702,1758107438648,-500.0,0.00025103,2]
[385891703,1758107438657,-150.0,0.00025103,2]
[385891704,1758107438666,-500.0,0.00025103,2]
[385891705,1758107438675,-500.0,0.00025103,2]
[385891706,1758107438687,-500.0,0.00025103,2]
[385891707,1758107438696,-500.0,0.00025103,2]
[385891708,1758107438705,-500.0,0.00025103,2]
[385891709,1758107438714,-150.0,0.00025103,2]
[385891710,1758107438723,-500.0,0.00025103,2]
[385891711,1758107438733,-500.0,0.00025103,2]
[385891712,1758107438742,-500.0,0.00025103,2]
[385891713,1758107438751,-260.23622963,0.00025103,2]
[385891714,1758107438763,-500.0,0.00025103,2]
[385891715,1758107438772,-2118.0,0.00025103,2]
[385891716,1758107438782,-500.0,0.00025103,2]
[385891717,1758107438791,-150.0,0.00025103,2]
[385891718,1758107438801,-150.0,0.00025103,2]
[385891719,1758107438810,-500.0,0.00025103,2]
[385891720,1758107438819,-500.0,0.00025103,2]
[385891721,1758107438828,-500.0,0.00025103,2]
[385891722,1758107438838,-689.0,0.00025103,2]
[385891723,1758107438847,-510.14198591,0.00025103,2]
[385891724,1758107438856,-500.0,0.00025103,2]
[385891725,1758107438865,-150.0,0.00025103,2]
[385891726,1758107438874,-500.0,0.00025103,2]
[385891727,1758107438883,-200.0,0.00025109,2]
[385891728,1758107438893,-200.0,0.00025109,2]
[385891729,1758107438902,-200.0,0.00025109,2]
[385891730,1758107438912,-200.0,0.00025109,2]
[385891731,1758107438921,-1003.5,0.00025127,2]
[385891732,1758107438930,-500.0,0.00025143,2]
[385891733,1758107438939,-500.0,0.00025143,2]
[385891734,1758107438948,-500.0,0.00025143,2]
[385891735,1758107438957,-500.0,0.00025143,2]
[385891736,1758107438966,-500.0,0.00025143,2]
[385891737,1758107438975,-206.57549548,0.00025143,2]
[385891738,1758107438983,-996.5,0.0002517,2]
[385891739,1758107438992,-213.18994792,0.00025189,3]
[385891740,1758107439001,-160.0,0.0002519,3]
[385891741,1758107439010,-359.61281316,0.00025198,10]
[385891742,1758107439019,-160.0,0.000252,3]
[385891743,1758107439028,-35225.50475831,0.000252,2]
[385891744,1758107439037,-151.0,0.00025292,2]
[385891745,1758107439046,-151.0,0.00025292,2]
[385891746,1758107439055,-151.0,0.00025292,2]
[385891747,1758107439064,-151.0,0.00025292,2]
[385891748,1758107439073,-202.315416,0.000253,2]
[385891749,1758107439082,-1679.0,0.000253,2]
[385891750,1758107439091,-178.39538607,0.00025306,2]
[385891751,1758107439100,-6024.12950762,0.00025323,2]
[385891752,1758107439109,-200.0,0.0002536,2]
[385891753,1758107439118,-438.14666705,0.00025376,2]
[385891754,1758107439127,-500.0,0.00025377,2]
[385891755,1758107439136,-500.0,0.00025377,2]
[385891756,1758107439146,-293.8312474,0.00025377,2]
[385891757,1758107439155,-500.0,0.00025377,2]
[385891758,1758107439165,-500.0,0.00025377,2]
[385891759,1758107439174,-500.0,0.00025377,2]
[385891760,1758107439183,-500.0,0.00025377,2]
[385891761,1758107439192,-500.0,0.00025377,2]
[385891762,1758107439201,-217.27799786,0.00025377,2]
[385891763,1758107439211,-500.0,0.00025377,2]
[385891764,1758107439221,-500.0,0.00025377,2]
[385891765,1758107439230,-500.0,0.00025377,2]
[385891766,1758107439239,-500.0,0.00025377,2]
[385891767,1758107439249,-2118.0,0.00025377,2]
[385891768,1758107439258,-572.38326135,0.00025377,2]
[385891770,1758107439267,-165.87812312,0.00025377,2]
[385891771,1758107439276,-219.2703696,0.00025377,2]
[385891772,1758107439285,-500.0,0.00025377,2]
[385891773,1758107439294,-500.0,0.00025377,2]
[385891774,1758107439304,-500.0,0.00025377,2]
[385891775,1758107439313,-689.0,0.00025377,2]
[385891776,1758107439322,-500.0,0.00025377,2]
[385891777,1758107439331,-150.0,0.00025377,2]
[385891778,1758107439341,-500.0,0.00025377,2]
[385891779,1758107439350,-1425.0,0.00025386,2]
[385891780,1758107439359,-500.0,0.00025417,2]
[385891781,1758107439369,-500.0,0.00025417,2]
[385891783,1758107439378,-500.0,0.00025417,2]
[385891785,1758107439387,-500.0,0.00025417,2]
[385891787,1758107439396,-500.0,0.00025417,2]
[385891789,1758107439405,-1000.0,0.00025421,2]
[385891791,1758107439414,-1000.0,0.00025421,2]
[385891793,1758107439423,-1000.0,0.00025421,2]
[385891794,1758107439433,-467.69178106,0.00025421,2]
[385891795,1758107439442,-203.0,0.0002543,2]
[385891796,1758107439451,-213.18994792,0.00025472,10]
[385891797,1758107439460,-6751.16934,0.0002549,2]
[385891798,1758107439468,-6024.12950762,0.00025605,2]
[385891799,1758107439477,-200.0,0.00025613,2]
[385891800,1758107439486,-1000.0,0.00025636,2]
[385891801,1758107439495,-500.0,0.00025651,2]
[385891802,1758107439504,-500.0,0.00025651,2]
[385891803,1758107439513,-601.10982402,0.00025651,2]
[385891804,1758107439522,-500.0,0.00025651,2]
[385891805,1758107439531,-151.81498266,0.00025651,2]
[385891806,1758107439540,-500.0,0.00025651,2]
[385891807,1758107439548,-285.00414359,0.00025651,2]
[385891808,1758107439558,-500.0,0.00025651,2]
[385891809,1758107439567,-500.0,0.00025651,2]
[385891810,1758107439576,-2118.0,0.00025651,2]
[385891811,1758107439586,-444.43504837,0.00025651,2]
[385891812,1758107439595,-500.0,0.00025651,2]
[385891813,1758107439604,-689.0,0.00025651,2]
[385891814,1758107439613,-500.0,0.00025651,2]
[385891815,1758107439622,-150.0,0.00025651,2]
[385891816,1758107439631,-170.21587881,0.00025651,2]
[385891817,1758107439641,-500.0,0.00025691,2]
[385891818,1758107439650,-500.0,0.00025691,2]
[385891819,1758107439659,-500.0,0.00025691,2]
[385891820,1758107439668,-500.0,0.00025691,2]
[385891821,1758107439678,-517.45800752,0.00025691,2]
[385891822,1758107439692,-1425.0,0.00025708,2]
[385891823,1758107439701,-470.1,0.00025723,2]
[385891824,1758107439710,-150.0,0.00025723,2]
[385891825,1758107439719,-150.0,0.00025753,2]
[385891826,1758107439729,-462.05873684,0.00025756,2]
[385891827,1758107439738,-171.38,0.00025781,2]
[385891828,1758107439747,-411.23,0.00025781,2]
[385891829,1758107439755,-1000.0,0.00025818,2]
[385891830,1758107439764,-1425.0,0.0002582,2]
[385891831,1758107439775,-151.0,0.0002584,2]
[385891832,1758107439784,-151.0,0.0002584,2]
[385891833,1758107439793,-151.0,0.0002584,2]
[385891834,1758107439803,-3023.52467191,0.00025846,2]
[385891835,1758107439812,-1425.0,0.00025867,2]
[385891836,1758107439822,-6024.12950762,0.00025887,2]
[385891837,1758107439831,-1464.94123183,0.00025888,2]
[385891838,1758107439840,-170.0,0.0002589,7]
[385891840,1758107439850,-255.0,0.00025891,2]
[385891842,1758107439859,-1425.0,0.00025904,2]
[385891844,1758107439868,-631.14,0.00025905,2]
[385891846,1758107439877,-500.0,0.00025925,2]
[385891848,1758107439886,-500.0,0.00025925,2]
[385891849,1758107439895,-500.0,0.00025925,2]
[385891851,1758107439905,-500.0,0.00025925,2]
[385891853,1758107439914,-500.0,0.00025925,2]
[385891855,1758107439923,-500.0,0.00025925,2]
[385891857,1758107439932,-2118.0,0.00025925,2]
[385891859,1758107439942,-188.12919387,0.00025925,2]
[385891861,1758107439951,-689.0,0.00025925,2]
[385891863,1758107439960,-260.73658062,0.00025925,2]
[385891865,1758107439969,-150.0,0.00025925,2]
[385891867,1758107439978,-1425.0,0.00025941,2]
[385891869,1758107439987,-150.0,0.00025953,2]
[385891871,1758107439996,-1000.0,0.00025955,2]
[385891873,1758107440006,-205.94225995,0.00025965,2]
[385891875,1758107440015,-500.0,0.00025965,2]
[385891877,1758107440024,-469.69105774,0.00025965,2]
[385891879,1758107440034,-1500.0,0.00025968,2]
[385891881,1758107440042,-1500.0,0.00025968,2]
[385891883,1758107440052,-166.84,0.00025989,2]
[385891885,1758107440061,-6751.16934,0.0002599,2]
[385891887,1758107440070,-438.14666705,0.00025993,2]
[385891889,1758107440079,-11490.28987968,0.00026,2]
[385891891,1758107440088,-955.0854104,0.00026013,2]
[385891893,1758107440097,-1000.0,0.00026019,2]
[385891895,1758107440106,-151.0,0.00026027,7]
[385891897,1758107440115,-151.0,0.00026027,7]
[385891899,1758107440124,-151.0,0.00026027,7]
[385891901,1758107440133,-151.0,0.00026027,7]
[385891902,1758107440142,-151.0,0.00026027,7]
[385891904,1758107440151,-151.0,0.00026027,7]
[385891906,1758107440160,-151.0,0.00026027,7]
[385891908,1758107440170,-151.0,0.00026027,7]
[385891910,1758107440179,-151.0,0.00026027,7]
[385891912,1758107440188,-234.700355,0.00026027,7]
[385891914,1758107440197,-150.0,0.00026052,2]
[385891917,1758107440208,-254.0,0.00026056,2]
[385891919,1758107440217,-170.8,0.00026065,2]
[385891921,1758107440226,-1425.0,0.00026099,2]
[385891922,1758107440235,-200.0,0.000261,7]
[385891924,1758107440244,-59659.51,0.000261,7]
[385891926,1758107440253,-334.5472959,0.00026113,2]
[385891929,1758107440263,-267.46074303,0.00026113,2]
[385891931,1758107440272,-420.0,0.00026127,2]
[385891933,1758107440282,-1081.97137789,0.00026138,2]
[385891935,1758107440291,-1425.0,0.00026144,2]
[385891937,1758107440302,-1425.0,0.00026163,2]
[385891938,1758107440311,-6024.12950762,0.00026169,2]
[385891940,1758107440320,-150.0,0.00026182,2]
[385891942,1758107440329,-217.40723967,0.00026199,2]
[385891943,1758107440338,-150.0,0.00026199,2]
[385891944,1758107440347,-500.0,0.00026199,2]
[385891945,1758107440356,-500.0,0.00026199,2]
[385891946,1758107440365,-212.78366875,0.00026199,2]
[385891947,1758107440375,-500.0,0.00026199,2]
[385891948,1758107440384,-500.0,0.00026199,2]
[385891949,1758107440393,-2118.0,0.00026199,2]
[385891950,1758107440403,-689.0,0.00026199,2]
[385891951,1758107440412,-150.0,0.00026199,2]
[385891952,1758107440421,-1104.0,0.000262,2]
[385891953,1758107440431,-1425.0,0.00026201,2]
[385891954,1758107440441,-150.0,0.00026203,2]
[385891955,1758107440450,-203.0,0.0002621,2]
[385891956,1758107440459,-1425.0,0.00026238,2]
[385891957,1758107440468,-500.0,0.00026239,2]
[385891958,1758107440477,-1425.0,0.00026261,2]
[385891959,1758107440487,-473.0,0.0002627,2]
[385891960,1758107440496,-1425.0,0.00026293,2]
[385891961,1758107440505,-1425.0,0.00026312,2]
[385891962,1758107440514,-247.09866658,0.00026329,2]
[385891963,1758107440523,-2124.929,0.00026341,2]
[385891964,1758107440532,-3488.349,0.00026341,2]
[385891965,1758107440541,-756.0,0.00026341,2]
[385891966,1758107440551,-571.725,0.00026341,2]
[385891967,1758107440561,-1303.0,0.00026341,2]
[385891968,1758107440570,-605.659,0.00026341,2]
[385891969,1758107440579,-1585.017,0.00026341,2]
[385891970,1758107440588,-813.0,0.00026341,2]
[385891971,1758107440596,-2369.831,0.00026341,2]
[385891972,1758107440606,-6178.0,0.00026341,2]